{"text_format":"3","workbook":"xlsx","n_sheets":2,"sheets":["Vestuvių biudžetas","Išsami biudžeto informacija"],"not_rendered":{"charts":1,"images":1,"defined_names":3},"read":"whole","date_system":"1900"}

{"sheet":"Vestuvių biudžetas","index":0,"n_rows":16,"n_cols":16,"rows_kept":16,"merged":[[1,1,1,5]]}
[{"$nulls":6}," "]
[null,"LISHA + DANIEL\nSUSITUOKTI"]
[{"$nulls":7}," "]
[]
[null,"KATEGORIJA","NUMATOMOS IŠLAIDOS","FAKTINĖS IŠLAIDOS","NUOKRYPIS","BIUDŽETO %",{"$nulls":3},"Nesurikiuota","Numatomos išlaidos","Faktinės išlaidos","Numatomų išlaidų įvertinta reikšmė","Įvertinimas","Nr.","Surikiuota"]
[null,{"$f":"P6","v":"Pokylis"},{"$f":"VLOOKUP(TBL_Suvestinė[[#This Row],[KATEGORIJA]],TBL_RankingData,2,FALSE)","v":{"v":14500,"d":"14,500 EUR"}},{"$f":"IF(VLOOKUP(TBL_Suvestinė[[#This Row],[KATEGORIJA]],TBL_RankingData,3,FALSE)=0,\"\",VLOOKUP(TBL_Suvestinė[[#This Row],[KATEGORIJA]],TBL_RankingData,3,FALSE))","v":{"v":12800,"d":"12,800 EUR"}},{"$f":"IF(OR(TBL_Suvestinė[[#This Row],[NUMATOMOS IŠLAIDOS]]=\"\",TBL_Suvestinė[[#This Row],[FAKTINĖS IŠLAIDOS]]=\"\"),\"\",TBL_Suvestinė[[#This Row],[NUMATOMOS IŠLAIDOS]]-TBL_Suvestinė[[#This Row],[FAKTINĖS IŠLAIDOS]])","v":{"v":1700,"d":"1,700 EUR"}},{"$f":"TBL_Suvestinė[[#This Row],[NUMATOMOS IŠLAIDOS]]/SUM(TBL_Suvestinė[NUMATOMOS IŠLAIDOS])","v":{"v":0.48739495798319327,"d":"48.7%"}},{"$nulls":3},"Pokylis",{"$f":"TBL_Pokylis[[#Totals],[NUMATOMA]]","v":14500},{"$f":"TBL_Pokylis[[#Totals],[FAKTINĖS IŠLAIDOS]]","v":12800},{"$f":"K6-O6/100","v":14499.99},{"$f":"_xlfn.RANK.AVG(M6,$M$6:$M$15)","v":1},1,{"$f":"INDEX(TBL_RankingData,MATCH(O6,$N$6:$N$15,0),1)","v":"Pokylis"}]
[null,{"$f":"P7","v":"Apranga"},{"$f":"VLOOKUP(TBL_Suvestinė[[#This Row],[KATEGORIJA]],TBL_RankingData,2,FALSE)","v":{"v":4000,"d":"4,000 EUR"}},{"$f":"IF(VLOOKUP(TBL_Suvestinė[[#This Row],[KATEGORIJA]],TBL_RankingData,3,FALSE)=0,\"\",VLOOKUP(TBL_Suvestinė[[#This Row],[KATEGORIJA]],TBL_RankingData,3,FALSE))","v":{"v":2900,"d":"2,900 EUR"}},{"$f":"IF(OR(TBL_Suvestinė[[#This Row],[NUMATOMOS IŠLAIDOS]]=\"\",TBL_Suvestinė[[#This Row],[FAKTINĖS IŠLAIDOS]]=\"\"),\"\",TBL_Suvestinė[[#This Row],[NUMATOMOS IŠLAIDOS]]-TBL_Suvestinė[[#This Row],[FAKTINĖS IŠLAIDOS]])","v":{"v":1100,"d":"1,100 EUR"}},{"$f":"TBL_Suvestinė[[#This Row],[NUMATOMOS IŠLAIDOS]]/SUM(TBL_Suvestinė[NUMATOMOS IŠLAIDOS])","v":{"v":0.13445378151260504,"d":"13.4%"}},{"$nulls":3},"Apranga",{"$f":"TBL_Apranga[[#Totals],[NUMATOMOS IŠLAIDOS]]","v":4000},{"$f":"TBL_Apranga[[#Totals],[FAKTINĖS IŠLAIDOS]]","v":2900},{"$f":"K7-O7/100","v":3999.98},2,2,"Apranga"]
[null,"Gėlės ir dekoracijos",{"$f":"VLOOKUP(TBL_Suvestinė[[#This Row],[KATEGORIJA]],TBL_RankingData,2,FALSE)","v":{"v":3000,"d":"3,000 EUR"}},{"$f":"IF(VLOOKUP(TBL_Suvestinė[[#This Row],[KATEGORIJA]],TBL_RankingData,3,FALSE)=0,\"\",VLOOKUP(TBL_Suvestinė[[#This Row],[KATEGORIJA]],TBL_RankingData,3,FALSE))","v":""},{"$f":"IF(OR(TBL_Suvestinė[[#This Row],[NUMATOMOS IŠLAIDOS]]=\"\",TBL_Suvestinė[[#This Row],[FAKTINĖS IŠLAIDOS]]=\"\"),\"\",TBL_Suvestinė[[#This Row],[NUMATOMOS IŠLAIDOS]]-TBL_Suvestinė[[#This Row],[FAKTINĖS IŠLAIDOS]])","v":""},{"$f":"TBL_Suvestinė[[#This Row],[NUMATOMOS IŠLAIDOS]]/SUM(TBL_Suvestinė[NUMATOMOS IŠLAIDOS])","v":{"v":0.10084033613445378,"d":"10.1%"}},{"$nulls":3},"Gėlės ir dekoracijos",{"$f":"TBL_GėlėsIrDekoracijos[[#Totals],[NUMATOMOS IŠLAIDOS]]","v":3000},{"$f":"TBL_GėlėsIrDekoracijos[[#Totals],[FAKTINĖS IŠLAIDOS]]","v":0},2999.97,3,3,"Gėlės ir dekoracijos"]
[null,"Nuotraukos ir vaizdo įrašai",{"$f":"VLOOKUP(TBL_Suvestinė[[#This Row],[KATEGORIJA]],TBL_RankingData,2,FALSE)","v":{"v":2500,"d":"2,500 EUR"}},{"$f":"IF(VLOOKUP(TBL_Suvestinė[[#This Row],[KATEGORIJA]],TBL_RankingData,3,FALSE)=0,\"\",VLOOKUP(TBL_Suvestinė[[#This Row],[KATEGORIJA]],TBL_RankingData,3,FALSE))","v":""},{"$f":"IF(OR(TBL_Suvestinė[[#This Row],[NUMATOMOS IŠLAIDOS]]=\"\",TBL_Suvestinė[[#This Row],[FAKTINĖS IŠLAIDOS]]=\"\"),\"\",TBL_Suvestinė[[#This Row],[NUMATOMOS IŠLAIDOS]]-TBL_Suvestinė[[#This Row],[FAKTINĖS IŠLAIDOS]])","v":""},{"$f":"TBL_Suvestinė[[#This Row],[NUMATOMOS IŠLAIDOS]]/SUM(TBL_Suvestinė[NUMATOMOS IŠLAIDOS])","v":{"v":0.08403361344537816,"d":"8.4%"}},{"$nulls":3},"Muzika",{"$f":"TBL_Muzika[[#Totals],[NUMATOMOS IŠLAIDOS]]","v":1800},{"$f":"TBL_Muzika[[#Totals],[FAKTINĖS IŠLAIDOS]]","v":0},1799.96,5,4,"Nuotraukos ir vaizdo įrašai"]
[null,"Muzika",{"$f":"VLOOKUP(TBL_Suvestinė[[#This Row],[KATEGORIJA]],TBL_RankingData,2,FALSE)","v":{"v":1800,"d":"1,800 EUR"}},{"$f":"IF(VLOOKUP(TBL_Suvestinė[[#This Row],[KATEGORIJA]],TBL_RankingData,3,FALSE)=0,\"\",VLOOKUP(TBL_Suvestinė[[#This Row],[KATEGORIJA]],TBL_RankingData,3,FALSE))","v":""},{"$f":"IF(OR(TBL_Suvestinė[[#This Row],[NUMATOMOS IŠLAIDOS]]=\"\",TBL_Suvestinė[[#This Row],[FAKTINĖS IŠLAIDOS]]=\"\"),\"\",TBL_Suvestinė[[#This Row],[NUMATOMOS IŠLAIDOS]]-TBL_Suvestinė[[#This Row],[FAKTINĖS IŠLAIDOS]])","v":""},{"$f":"TBL_Suvestinė[[#This Row],[NUMATOMOS IŠLAIDOS]]/SUM(TBL_Suvestinė[NUMATOMOS IŠLAIDOS])","v":{"v":0.06050420168067227,"d":"6.1%"}},{"$nulls":3},"Nuotraukos ir vaizdo įrašai",{"$f":"TBL_FotografijaIrFilmavimas[[#Totals],[NUMATOMOS IŠLAIDOS]]","v":2500},{"$f":"TBL_FotografijaIrFilmavimas[[#Totals],[FAKTINĖS IŠLAIDOS]]","v":0},2499.95,4,5,"Muzika"]
[null,"Dovanėlės ir dovanos",{"$f":"VLOOKUP(TBL_Suvestinė[[#This Row],[KATEGORIJA]],TBL_RankingData,2,FALSE)","v":{"v":1100,"d":"1,100 EUR"}},{"$f":"IF(VLOOKUP(TBL_Suvestinė[[#This Row],[KATEGORIJA]],TBL_RankingData,3,FALSE)=0,\"\",VLOOKUP(TBL_Suvestinė[[#This Row],[KATEGORIJA]],TBL_RankingData,3,FALSE))","v":""},{"$f":"IF(OR(TBL_Suvestinė[[#This Row],[NUMATOMOS IŠLAIDOS]]=\"\",TBL_Suvestinė[[#This Row],[FAKTINĖS IŠLAIDOS]]=\"\"),\"\",TBL_Suvestinė[[#This Row],[NUMATOMOS IŠLAIDOS]]-TBL_Suvestinė[[#This Row],[FAKTINĖS IŠLAIDOS]])","v":""},{"$f":"TBL_Suvestinė[[#This Row],[NUMATOMOS IŠLAIDOS]]/SUM(TBL_Suvestinė[NUMATOMOS IŠLAIDOS])","v":{"v":0.03697478991596639,"d":"3.7%"}},{"$nulls":3},"Dovanėlės ir dovanos",{"$f":"TBL_DovanėlėsSvečiams[[#Totals],[NUMATOMOS IŠLAIDOS]]","v":1100},{"$f":"TBL_DovanėlėsSvečiams[[#Totals],[FAKTINĖS IŠLAIDOS]]","v":0},1099.94,6,6,"Dovanėlės ir dovanos"]
[null,{"$f":"P12","v":"Vestuvių žiedai"},{"$f":"VLOOKUP(TBL_Suvestinė[[#This Row],[KATEGORIJA]],TBL_RankingData,2,FALSE)","v":{"v":1100,"d":"1,100 EUR"}},{"$f":"IF(VLOOKUP(TBL_Suvestinė[[#This Row],[KATEGORIJA]],TBL_RankingData,3,FALSE)=0,\"\",VLOOKUP(TBL_Suvestinė[[#This Row],[KATEGORIJA]],TBL_RankingData,3,FALSE))","v":""},{"$f":"IF(OR(TBL_Suvestinė[[#This Row],[NUMATOMOS IŠLAIDOS]]=\"\",TBL_Suvestinė[[#This Row],[FAKTINĖS IŠLAIDOS]]=\"\"),\"\",TBL_Suvestinė[[#This Row],[NUMATOMOS IŠLAIDOS]]-TBL_Suvestinė[[#This Row],[FAKTINĖS IŠLAIDOS]])","v":""},{"$f":"TBL_Suvestinė[[#This Row],[NUMATOMOS IŠLAIDOS]]/SUM(TBL_Suvestinė[NUMATOMOS IŠLAIDOS])","v":{"v":0.03697478991596639,"d":"3.7%"}},{"$nulls":3},"Ceremonija",{"$f":"TBL_Ceremonija[[#Totals],[NUMATOMOS IŠLAIDOS]]","v":800},{"$f":"TBL_Ceremonija[[#Totals],[FAKTINĖS IŠLAIDOS]]","v":0},799.93,8,7,"Vestuvių žiedai"]
[null,"Ceremonija",{"$f":"VLOOKUP(TBL_Suvestinė[[#This Row],[KATEGORIJA]],TBL_RankingData,2,FALSE)","v":{"v":800,"d":"800 EUR"}},{"$f":"IF(VLOOKUP(TBL_Suvestinė[[#This Row],[KATEGORIJA]],TBL_RankingData,3,FALSE)=0,\"\",VLOOKUP(TBL_Suvestinė[[#This Row],[KATEGORIJA]],TBL_RankingData,3,FALSE))","v":""},{"$f":"IF(OR(TBL_Suvestinė[[#This Row],[NUMATOMOS IŠLAIDOS]]=\"\",TBL_Suvestinė[[#This Row],[FAKTINĖS IŠLAIDOS]]=\"\"),\"\",TBL_Suvestinė[[#This Row],[NUMATOMOS IŠLAIDOS]]-TBL_Suvestinė[[#This Row],[FAKTINĖS IŠLAIDOS]])","v":""},{"$f":"TBL_Suvestinė[[#This Row],[NUMATOMOS IŠLAIDOS]]/SUM(TBL_Suvestinė[NUMATOMOS IŠLAIDOS])","v":{"v":0.02689075630252101,"d":"2.7%"}},{"$nulls":3},"Kanceliariniai reikmenys",{"$f":"TBL_RaštinėsReikmenys[[#Totals],[NUMATOMOS IŠLAIDOS]]","v":500},{"$f":"TBL_RaštinėsReikmenys[[#Totals],[FAKTINĖS IŠLAIDOS]]","v":0},499.92,9,8,"Ceremonija"]
[null,"Kanceliariniai reikmenys",{"$f":"VLOOKUP(TBL_Suvestinė[[#This Row],[KATEGORIJA]],TBL_RankingData,2,FALSE)","v":{"v":500,"d":"500 EUR"}},{"$f":"IF(VLOOKUP(TBL_Suvestinė[[#This Row],[KATEGORIJA]],TBL_RankingData,3,FALSE)=0,\"\",VLOOKUP(TBL_Suvestinė[[#This Row],[KATEGORIJA]],TBL_RankingData,3,FALSE))","v":""},{"$f":"IF(OR(TBL_Suvestinė[[#This Row],[NUMATOMOS IŠLAIDOS]]=\"\",TBL_Suvestinė[[#This Row],[FAKTINĖS IŠLAIDOS]]=\"\"),\"\",TBL_Suvestinė[[#This Row],[NUMATOMOS IŠLAIDOS]]-TBL_Suvestinė[[#This Row],[FAKTINĖS IŠLAIDOS]])","v":""},{"$f":"TBL_Suvestinė[[#This Row],[NUMATOMOS IŠLAIDOS]]/SUM(TBL_Suvestinė[NUMATOMOS IŠLAIDOS])","v":{"v":0.01680672268907563,"d":"1.7%"}},{"$nulls":3},"Vestuvių žiedai",{"$f":"TBL_Žiedai[[#Totals],[NUMATOMOS IŠLAIDOS]]","v":1100},{"$f":"TBL_Žiedai[[#Totals],[FAKTINĖS IŠLAIDOS]]","v":0},1099.91,7,9,"Kanceliariniai reikmenys"]
[null,"Transportas",{"$f":"VLOOKUP(TBL_Suvestinė[[#This Row],[KATEGORIJA]],TBL_RankingData,2,FALSE)","v":{"v":450,"d":"450 EUR"}},{"$f":"IF(VLOOKUP(TBL_Suvestinė[[#This Row],[KATEGORIJA]],TBL_RankingData,3,FALSE)=0,\"\",VLOOKUP(TBL_Suvestinė[[#This Row],[KATEGORIJA]],TBL_RankingData,3,FALSE))","v":""},{"$f":"IF(OR(TBL_Suvestinė[[#This Row],[NUMATOMOS IŠLAIDOS]]=\"\",TBL_Suvestinė[[#This Row],[FAKTINĖS IŠLAIDOS]]=\"\"),\"\",TBL_Suvestinė[[#This Row],[NUMATOMOS IŠLAIDOS]]-TBL_Suvestinė[[#This Row],[FAKTINĖS IŠLAIDOS]])","v":""},{"$f":"TBL_Suvestinė[[#This Row],[NUMATOMOS IŠLAIDOS]]/SUM(TBL_Suvestinė[NUMATOMOS IŠLAIDOS])","v":{"v":0.015126050420168067,"d":"1.5%"}},{"$nulls":3},"Transportas",{"$f":"TBL_Transportas[[#Totals],[NUMATOMOS IŠLAIDOS]]","v":450},{"$f":"TBL_Transportas[[#Totals],[FAKTINĖS IŠLAIDOS]]","v":0},449.9,10,10,"Transportas"]
[null,"Suma",{"$f":"SUBTOTAL(109,TBL_Suvestinė[NUMATOMOS IŠLAIDOS])","v":{"v":29750,"d":"29,750 EUR"}},{"$f":"SUBTOTAL(109,TBL_Suvestinė[FAKTINĖS IŠLAIDOS])","v":{"v":15700,"d":"15,700 EUR"}},{"$f":"TBL_Suvestinė[[#Totals],[NUMATOMOS IŠLAIDOS]]-TBL_Suvestinė[[#Totals],[FAKTINĖS IŠLAIDOS]]","v":{"v":14050,"d":"14,050 EUR"}},{"$f":"SUBTOTAL(109,TBL_Suvestinė[BIUDŽETO %])","v":{"v":1,"d":"100%"}}]

{"sheet":"Išsami biudžeto informacija","index":1,"n_rows":91,"n_cols":6,"rows_kept":91}
[{"$nulls":5}," "]
[null,"IŠSAMI BIUDŽETO INFORMACIJA"]
[]
[null,"POKYLIS","NUMATOMA","FAKTINĖS IŠLAIDOS","NUOKRYPIS"]
[null,"Vieta ir nuoma",{"v":8000,"d":"8,000.00 EUR"},{"v":7800,"d":"7,800.00 EUR"},{"$f":"IF(OR(TBL_Pokylis[[#This Row],[NUMATOMA]]=\"\",TBL_Pokylis[[#This Row],[FAKTINĖS IŠLAIDOS]]=\"\"),\"\",TBL_Pokylis[[#This Row],[NUMATOMA]]-TBL_Pokylis[[#This Row],[FAKTINĖS IŠLAIDOS]])","v":{"v":200,"d":"200.00 EUR"}}]
[null,"Maistas ir aptarnavimas",{"v":4000,"d":"4,000.00 EUR"},{"v":4200,"d":"4,200.00 EUR"},{"$f":"IF(OR(TBL_Pokylis[[#This Row],[NUMATOMA]]=\"\",TBL_Pokylis[[#This Row],[FAKTINĖS IŠLAIDOS]]=\"\"),\"\",TBL_Pokylis[[#This Row],[NUMATOMA]]-TBL_Pokylis[[#This Row],[FAKTINĖS IŠLAIDOS]])","v":{"v":-200,"d":"-200.00 EUR"}}]
[null,"Gėrimai",{"v":1000,"d":"1,000.00 EUR"},{"v":800,"d":"800.00 EUR"},{"$f":"IF(OR(TBL_Pokylis[[#This Row],[NUMATOMA]]=\"\",TBL_Pokylis[[#This Row],[FAKTINĖS IŠLAIDOS]]=\"\"),\"\",TBL_Pokylis[[#This Row],[NUMATOMA]]-TBL_Pokylis[[#This Row],[FAKTINĖS IŠLAIDOS]])","v":{"v":200,"d":"200.00 EUR"}}]
[null,"Tortas",{"v":1000,"d":"1,000.00 EUR"},null,{"$f":"IF(OR(TBL_Pokylis[[#This Row],[NUMATOMA]]=\"\",TBL_Pokylis[[#This Row],[FAKTINĖS IŠLAIDOS]]=\"\"),\"\",TBL_Pokylis[[#This Row],[NUMATOMA]]-TBL_Pokylis[[#This Row],[FAKTINĖS IŠLAIDOS]])","v":""}]
[null,"Papildomi mokesčiai",{"v":500,"d":"500.00 EUR"},null,{"$f":"IF(OR(TBL_Pokylis[[#This Row],[NUMATOMA]]=\"\",TBL_Pokylis[[#This Row],[FAKTINĖS IŠLAIDOS]]=\"\"),\"\",TBL_Pokylis[[#This Row],[NUMATOMA]]-TBL_Pokylis[[#This Row],[FAKTINĖS IŠLAIDOS]])","v":""}]
[null,"IŠ VISO UŽ POKYLĮ",{"$f":"SUBTOTAL(109,TBL_Pokylis[NUMATOMA])","v":{"v":14500,"d":"14,500.00 EUR"}},{"$f":"SUBTOTAL(109,TBL_Pokylis[FAKTINĖS IŠLAIDOS])","v":{"v":12800,"d":"12,800.00 EUR"}},{"$f":"TBL_Pokylis[[#Totals],[NUMATOMA]]-TBL_Pokylis[[#Totals],[FAKTINĖS IŠLAIDOS]]","v":{"v":1700,"d":"1,700.00 EUR"}}]
[]
[]
[null,"APRANGA","NUMATOMOS IŠLAIDOS","FAKTINĖS IŠLAIDOS","NUOKRYPIS"]
[null,"Kostiumai ir (arba) suknelės",{"v":3000,"d":"3,000.00 EUR"},{"v":2900,"d":"2,900.00 EUR"},{"$f":"IF(OR(TBL_Apranga[[#This Row],[NUMATOMOS IŠLAIDOS]]=\"\",TBL_Apranga[[#This Row],[FAKTINĖS IŠLAIDOS]]=\"\"),\"\",TBL_Apranga[[#This Row],[NUMATOMOS IŠLAIDOS]]-TBL_Apranga[[#This Row],[FAKTINĖS IŠLAIDOS]])","v":{"v":100,"d":"100.00 EUR"}}]
[null,"Pakeitimai",{"v":100,"d":"100.00 EUR"},null,{"$f":"IF(OR(TBL_Apranga[[#This Row],[NUMATOMOS IŠLAIDOS]]=\"\",TBL_Apranga[[#This Row],[FAKTINĖS IŠLAIDOS]]=\"\"),\"\",TBL_Apranga[[#This Row],[NUMATOMOS IŠLAIDOS]]-TBL_Apranga[[#This Row],[FAKTINĖS IŠLAIDOS]])","v":""}]
[null,"Skrybėlės ir skraistės",{"v":200,"d":"200.00 EUR"},null,{"$f":"IF(OR(TBL_Apranga[[#This Row],[NUMATOMOS IŠLAIDOS]]=\"\",TBL_Apranga[[#This Row],[FAKTINĖS IŠLAIDOS]]=\"\"),\"\",TBL_Apranga[[#This Row],[NUMATOMOS IŠLAIDOS]]-TBL_Apranga[[#This Row],[FAKTINĖS IŠLAIDOS]])","v":""}]
[null,"Aksesuarai",{"v":100,"d":"100.00 EUR"},null,{"$f":"IF(OR(TBL_Apranga[[#This Row],[NUMATOMOS IŠLAIDOS]]=\"\",TBL_Apranga[[#This Row],[FAKTINĖS IŠLAIDOS]]=\"\"),\"\",TBL_Apranga[[#This Row],[NUMATOMOS IŠLAIDOS]]-TBL_Apranga[[#This Row],[FAKTINĖS IŠLAIDOS]])","v":""}]
[null,"Šukuosena ir makiažas",{"v":500,"d":"500.00 EUR"},null,{"$f":"IF(OR(TBL_Apranga[[#This Row],[NUMATOMOS IŠLAIDOS]]=\"\",TBL_Apranga[[#This Row],[FAKTINĖS IŠLAIDOS]]=\"\"),\"\",TBL_Apranga[[#This Row],[NUMATOMOS IŠLAIDOS]]-TBL_Apranga[[#This Row],[FAKTINĖS IŠLAIDOS]])","v":""}]
[null,"Papildomi mokesčiai",{"v":100,"d":"100.00 EUR"},null,{"$f":"IF(OR(TBL_Apranga[[#This Row],[NUMATOMOS IŠLAIDOS]]=\"\",TBL_Apranga[[#This Row],[FAKTINĖS IŠLAIDOS]]=\"\"),\"\",TBL_Apranga[[#This Row],[NUMATOMOS IŠLAIDOS]]-TBL_Apranga[[#This Row],[FAKTINĖS IŠLAIDOS]])","v":""}]
[null,"BENDRA SUMA UŽ APRANGĄ",{"$f":"SUBTOTAL(109,TBL_Apranga[NUMATOMOS IŠLAIDOS])","v":{"v":4000,"d":"4,000.00 EUR"}},{"$f":"SUBTOTAL(109,TBL_Apranga[FAKTINĖS IŠLAIDOS])","v":{"v":2900,"d":"2,900.00 EUR"}},{"$f":"TBL_Apranga[[#Totals],[NUMATOMOS IŠLAIDOS]]-TBL_Apranga[[#Totals],[FAKTINĖS IŠLAIDOS]]","v":{"v":1100,"d":"1,100.00 EUR"}}]
[]
[]
[null,"GĖLĖS IR DEKORACIJOS","NUMATOMOS IŠLAIDOS","FAKTINĖS IŠLAIDOS","NUOKRYPIS"]
[null,"Gėlių išdėstymas ceremonijai",{"v":1000,"d":"1,000.00 EUR"},null,{"$f":"IF(OR(TBL_GėlėsIrDekoracijos[[#This Row],[NUMATOMOS IŠLAIDOS]]=\"\",TBL_GėlėsIrDekoracijos[[#This Row],[FAKTINĖS IŠLAIDOS]]=\"\"),\"\",TBL_GėlėsIrDekoracijos[[#This Row],[NUMATOMOS IŠLAIDOS]]-TBL_GėlėsIrDekoracijos[[#This Row],[FAKTINĖS IŠLAIDOS]])","v":""}]
[null,"Gėlių mergaitės žiedai ir krepšelis",{"v":500,"d":"500.00 EUR"},null,{"$f":"IF(OR(TBL_GėlėsIrDekoracijos[[#This Row],[NUMATOMOS IŠLAIDOS]]=\"\",TBL_GėlėsIrDekoracijos[[#This Row],[FAKTINĖS IŠLAIDOS]]=\"\"),\"\",TBL_GėlėsIrDekoracijos[[#This Row],[NUMATOMOS IŠLAIDOS]]-TBL_GėlėsIrDekoracijos[[#This Row],[FAKTINĖS IŠLAIDOS]])","v":""}]
[null,"Žiedų pagalvėlė",{"v":100,"d":"100.00 EUR"},null,{"$f":"IF(OR(TBL_GėlėsIrDekoracijos[[#This Row],[NUMATOMOS IŠLAIDOS]]=\"\",TBL_GėlėsIrDekoracijos[[#This Row],[FAKTINĖS IŠLAIDOS]]=\"\"),\"\",TBL_GėlėsIrDekoracijos[[#This Row],[NUMATOMOS IŠLAIDOS]]-TBL_GėlėsIrDekoracijos[[#This Row],[FAKTINĖS IŠLAIDOS]])","v":""}]
[null,"Puokštės",{"v":500,"d":"500.00 EUR"},null,{"$f":"IF(OR(TBL_GėlėsIrDekoracijos[[#This Row],[NUMATOMOS IŠLAIDOS]]=\"\",TBL_GėlėsIrDekoracijos[[#This Row],[FAKTINĖS IŠLAIDOS]]=\"\"),\"\",TBL_GėlėsIrDekoracijos[[#This Row],[NUMATOMOS IŠLAIDOS]]-TBL_GėlėsIrDekoracijos[[#This Row],[FAKTINĖS IŠLAIDOS]])","v":""}]
[null,"Įsegami žiedai",{"v":100,"d":"100.00 EUR"},null,{"$f":"IF(OR(TBL_GėlėsIrDekoracijos[[#This Row],[NUMATOMOS IŠLAIDOS]]=\"\",TBL_GėlėsIrDekoracijos[[#This Row],[FAKTINĖS IŠLAIDOS]]=\"\"),\"\",TBL_GėlėsIrDekoracijos[[#This Row],[NUMATOMOS IŠLAIDOS]]-TBL_GėlėsIrDekoracijos[[#This Row],[FAKTINĖS IŠLAIDOS]])","v":""}]
[null,"Prie krūtinės segamos puokštelės",{"v":200,"d":"200.00 EUR"},null,{"$f":"IF(OR(TBL_GėlėsIrDekoracijos[[#This Row],[NUMATOMOS IŠLAIDOS]]=\"\",TBL_GėlėsIrDekoracijos[[#This Row],[FAKTINĖS IŠLAIDOS]]=\"\"),\"\",TBL_GėlėsIrDekoracijos[[#This Row],[NUMATOMOS IŠLAIDOS]]-TBL_GėlėsIrDekoracijos[[#This Row],[FAKTINĖS IŠLAIDOS]])","v":""}]
[null,"Sutikimo dekoracijos",{"v":300,"d":"300.00 EUR"},null,{"$f":"IF(OR(TBL_GėlėsIrDekoracijos[[#This Row],[NUMATOMOS IŠLAIDOS]]=\"\",TBL_GėlėsIrDekoracijos[[#This Row],[FAKTINĖS IŠLAIDOS]]=\"\"),\"\",TBL_GėlėsIrDekoracijos[[#This Row],[NUMATOMOS IŠLAIDOS]]-TBL_GėlėsIrDekoracijos[[#This Row],[FAKTINĖS IŠLAIDOS]])","v":""}]
[null,"Apšvietimas",{"v":200,"d":"200.00 EUR"},null,{"$f":"IF(OR(TBL_GėlėsIrDekoracijos[[#This Row],[NUMATOMOS IŠLAIDOS]]=\"\",TBL_GėlėsIrDekoracijos[[#This Row],[FAKTINĖS IŠLAIDOS]]=\"\"),\"\",TBL_GėlėsIrDekoracijos[[#This Row],[NUMATOMOS IŠLAIDOS]]-TBL_GėlėsIrDekoracijos[[#This Row],[FAKTINĖS IŠLAIDOS]])","v":""}]
[null,"Papildomi mokesčiai",{"v":100,"d":"100.00 EUR"},null,{"$f":"IF(OR(TBL_GėlėsIrDekoracijos[[#This Row],[NUMATOMOS IŠLAIDOS]]=\"\",TBL_GėlėsIrDekoracijos[[#This Row],[FAKTINĖS IŠLAIDOS]]=\"\"),\"\",TBL_GėlėsIrDekoracijos[[#This Row],[NUMATOMOS IŠLAIDOS]]-TBL_GėlėsIrDekoracijos[[#This Row],[FAKTINĖS IŠLAIDOS]])","v":""}]
[null,"IŠ VSO UŽ GĖLES IR DEKORACIJAS",{"$f":"SUBTOTAL(109,TBL_GėlėsIrDekoracijos[NUMATOMOS IŠLAIDOS])","v":{"v":3000,"d":"3,000.00 EUR"}},{"$f":"SUBTOTAL(109,TBL_GėlėsIrDekoracijos[FAKTINĖS IŠLAIDOS])","v":{"v":0,"d":"0.00 EUR"}},{"$f":"TBL_GėlėsIrDekoracijos[[#Totals],[NUMATOMOS IŠLAIDOS]]-TBL_GėlėsIrDekoracijos[[#Totals],[FAKTINĖS IŠLAIDOS]]","v":{"v":3000,"d":"3,000.00 EUR"}}]
[]
[]
[null,"MUZIKA","NUMATOMOS IŠLAIDOS","FAKTINĖS IŠLAIDOS","NUOKRYPIS"]
[null,"Ceremonijos muzikantai",{"v":700,"d":"700.00 EUR"},null,{"$f":"IF(OR(TBL_Muzika[[#This Row],[NUMATOMOS IŠLAIDOS]]=\"\",TBL_Muzika[[#This Row],[FAKTINĖS IŠLAIDOS]]=\"\"),\"\",TBL_Muzika[[#This Row],[NUMATOMOS IŠLAIDOS]]-TBL_Muzika[[#This Row],[FAKTINĖS IŠLAIDOS]])","v":""}]
[null,"Kokteilių pertraukėlės muzikantai",{"v":300,"d":"300.00 EUR"},null,{"$f":"IF(OR(TBL_Muzika[[#This Row],[NUMATOMOS IŠLAIDOS]]=\"\",TBL_Muzika[[#This Row],[FAKTINĖS IŠLAIDOS]]=\"\"),\"\",TBL_Muzika[[#This Row],[NUMATOMOS IŠLAIDOS]]-TBL_Muzika[[#This Row],[FAKTINĖS IŠLAIDOS]])","v":""}]
[null,"Sutikimo grupė, vedėjas ar pramogos",{"v":200,"d":"200.00 EUR"},null,{"$f":"IF(OR(TBL_Muzika[[#This Row],[NUMATOMOS IŠLAIDOS]]=\"\",TBL_Muzika[[#This Row],[FAKTINĖS IŠLAIDOS]]=\"\"),\"\",TBL_Muzika[[#This Row],[NUMATOMOS IŠLAIDOS]]-TBL_Muzika[[#This Row],[FAKTINĖS IŠLAIDOS]])","v":""}]
[null,"Garso sistemos ar šokių aikštelės nuoma",{"v":400,"d":"400.00 EUR"},null,{"$f":"IF(OR(TBL_Muzika[[#This Row],[NUMATOMOS IŠLAIDOS]]=\"\",TBL_Muzika[[#This Row],[FAKTINĖS IŠLAIDOS]]=\"\"),\"\",TBL_Muzika[[#This Row],[NUMATOMOS IŠLAIDOS]]-TBL_Muzika[[#This Row],[FAKTINĖS IŠLAIDOS]])","v":""}]
[null,"Papildomi mokesčiai",{"v":200,"d":"200.00 EUR"},null,{"$f":"IF(OR(TBL_Muzika[[#This Row],[NUMATOMOS IŠLAIDOS]]=\"\",TBL_Muzika[[#This Row],[FAKTINĖS IŠLAIDOS]]=\"\"),\"\",TBL_Muzika[[#This Row],[NUMATOMOS IŠLAIDOS]]-TBL_Muzika[[#This Row],[FAKTINĖS IŠLAIDOS]])","v":""}]
[null,"IŠ VISO UŽ MUZIKĄ",{"$f":"SUBTOTAL(109,TBL_Muzika[NUMATOMOS IŠLAIDOS])","v":{"v":1800,"d":"1,800.00 EUR"}},{"$f":"SUBTOTAL(109,TBL_Muzika[FAKTINĖS IŠLAIDOS])","v":{"v":0,"d":"0.00 EUR"}},{"$f":"TBL_Muzika[[#Totals],[NUMATOMOS IŠLAIDOS]]-TBL_Muzika[[#Totals],[FAKTINĖS IŠLAIDOS]]","v":{"v":1800,"d":"1,800.00 EUR"}}]
[]
[]
[null,"FOTOGRAFIJA IR FILMAVIMAS","NUMATOMOS IŠLAIDOS","FAKTINĖS IŠLAIDOS","NUOKRYPIS"]
[null,"Fotografija",{"v":1000,"d":"1,000.00 EUR"},null,{"$f":"IF(OR(TBL_FotografijaIrFilmavimas[[#This Row],[NUMATOMOS IŠLAIDOS]]=\"\",TBL_FotografijaIrFilmavimas[[#This Row],[FAKTINĖS IŠLAIDOS]]=\"\"),\"\",TBL_FotografijaIrFilmavimas[[#This Row],[NUMATOMOS IŠLAIDOS]]-TBL_FotografijaIrFilmavimas[[#This Row],[FAKTINĖS IŠLAIDOS]])","v":""}]
[null,"Filmavimas ir vaizdinė medžiaga",{"v":800,"d":"800.00 EUR"},null,{"$f":"IF(OR(TBL_FotografijaIrFilmavimas[[#This Row],[NUMATOMOS IŠLAIDOS]]=\"\",TBL_FotografijaIrFilmavimas[[#This Row],[FAKTINĖS IŠLAIDOS]]=\"\"),\"\",TBL_FotografijaIrFilmavimas[[#This Row],[NUMATOMOS IŠLAIDOS]]-TBL_FotografijaIrFilmavimas[[#This Row],[FAKTINĖS IŠLAIDOS]])","v":""}]
[null,"Papildomos nuotraukos ir albumai",{"v":500,"d":"500.00 EUR"},null,{"$f":"IF(OR(TBL_FotografijaIrFilmavimas[[#This Row],[NUMATOMOS IŠLAIDOS]]=\"\",TBL_FotografijaIrFilmavimas[[#This Row],[FAKTINĖS IŠLAIDOS]]=\"\"),\"\",TBL_FotografijaIrFilmavimas[[#This Row],[NUMATOMOS IŠLAIDOS]]-TBL_FotografijaIrFilmavimas[[#This Row],[FAKTINĖS IŠLAIDOS]])","v":""}]
[null,"Papildomi mokesčiai",{"v":200,"d":"200.00 EUR"},null,{"$f":"IF(OR(TBL_FotografijaIrFilmavimas[[#This Row],[NUMATOMOS IŠLAIDOS]]=\"\",TBL_FotografijaIrFilmavimas[[#This Row],[FAKTINĖS IŠLAIDOS]]=\"\"),\"\",TBL_FotografijaIrFilmavimas[[#This Row],[NUMATOMOS IŠLAIDOS]]-TBL_FotografijaIrFilmavimas[[#This Row],[FAKTINĖS IŠLAIDOS]])","v":""}]
[null,"IŠ VISO UŽ FOTOGRAFIJĄ IR VAIZDO ĮRAŠĄ",{"$f":"SUBTOTAL(109,TBL_FotografijaIrFilmavimas[NUMATOMOS IŠLAIDOS])","v":{"v":2500,"d":"2,500.00 EUR"}},{"$f":"SUBTOTAL(109,TBL_FotografijaIrFilmavimas[FAKTINĖS IŠLAIDOS])","v":{"v":0,"d":"0.00 EUR"}},{"$f":"TBL_FotografijaIrFilmavimas[[#Totals],[NUMATOMOS IŠLAIDOS]]-TBL_FotografijaIrFilmavimas[[#Totals],[FAKTINĖS IŠLAIDOS]]","v":{"v":2500,"d":"2,500.00 EUR"}}]
[]
[]
[null,"DOVANĖLĖS SVEČIAMS","NUMATOMOS IŠLAIDOS","FAKTINĖS IŠLAIDOS","NUOKRYPIS"]
[null,"Sveikinimo dovanos",{"v":700,"d":"700.00 EUR"},null,{"$f":"IF(OR(TBL_DovanėlėsSvečiams[[#This Row],[NUMATOMOS IŠLAIDOS]]=\"\",TBL_DovanėlėsSvečiams[[#This Row],[FAKTINĖS IŠLAIDOS]]=\"\"),\"\",TBL_DovanėlėsSvečiams[[#This Row],[NUMATOMOS IŠLAIDOS]]-TBL_DovanėlėsSvečiams[[#This Row],[FAKTINĖS IŠLAIDOS]])","v":""}]
[null,"Šventinės dovanos",{"v":200,"d":"200.00 EUR"},null,{"$f":"IF(OR(TBL_DovanėlėsSvečiams[[#This Row],[NUMATOMOS IŠLAIDOS]]=\"\",TBL_DovanėlėsSvečiams[[#This Row],[FAKTINĖS IŠLAIDOS]]=\"\"),\"\",TBL_DovanėlėsSvečiams[[#This Row],[NUMATOMOS IŠLAIDOS]]-TBL_DovanėlėsSvečiams[[#This Row],[FAKTINĖS IŠLAIDOS]])","v":""}]
[null,"Papildomi mokesčiai",{"v":200,"d":"200.00 EUR"},null,{"$f":"IF(OR(TBL_DovanėlėsSvečiams[[#This Row],[NUMATOMOS IŠLAIDOS]]=\"\",TBL_DovanėlėsSvečiams[[#This Row],[FAKTINĖS IŠLAIDOS]]=\"\"),\"\",TBL_DovanėlėsSvečiams[[#This Row],[NUMATOMOS IŠLAIDOS]]-TBL_DovanėlėsSvečiams[[#This Row],[FAKTINĖS IŠLAIDOS]])","v":""}]
[null,"IŠ VISO UŽ DOVANĖLES SVEČIAMS",{"$f":"SUBTOTAL(109,TBL_DovanėlėsSvečiams[NUMATOMOS IŠLAIDOS])","v":{"v":1100,"d":"1,100.00 EUR"}},{"$f":"SUBTOTAL(109,TBL_DovanėlėsSvečiams[FAKTINĖS IŠLAIDOS])","v":{"v":0,"d":"0.00 EUR"}},{"$f":"TBL_DovanėlėsSvečiams[[#Totals],[NUMATOMOS IŠLAIDOS]]-TBL_DovanėlėsSvečiams[[#Totals],[FAKTINĖS IŠLAIDOS]]","v":{"v":1100,"d":"1,100.00 EUR"}}]
[]
[]
[null,"CEREMONIJA","NUMATOMOS IŠLAIDOS","FAKTINĖS IŠLAIDOS","NUOKRYPIS"]
[null,"Vietos mokestis",{"v":500,"d":"500.00 EUR"},null,{"$f":"IF(OR(TBL_Ceremonija[[#This Row],[NUMATOMOS IŠLAIDOS]]=\"\",TBL_Ceremonija[[#This Row],[FAKTINĖS IŠLAIDOS]]=\"\"),\"\",TBL_Ceremonija[[#This Row],[NUMATOMOS IŠLAIDOS]]-TBL_Ceremonija[[#This Row],[FAKTINĖS IŠLAIDOS]])","v":""}]
[null,"Padavėjo mokestis arba auka bažnyčiai",{"v":200,"d":"200.00 EUR"},null,{"$f":"IF(OR(TBL_Ceremonija[[#This Row],[NUMATOMOS IŠLAIDOS]]=\"\",TBL_Ceremonija[[#This Row],[FAKTINĖS IŠLAIDOS]]=\"\"),\"\",TBL_Ceremonija[[#This Row],[NUMATOMOS IŠLAIDOS]]-TBL_Ceremonija[[#This Row],[FAKTINĖS IŠLAIDOS]])","v":""}]
[null,"Papildomi mokesčiai",{"v":100,"d":"100.00 EUR"},null,{"$f":"IF(OR(TBL_Ceremonija[[#This Row],[NUMATOMOS IŠLAIDOS]]=\"\",TBL_Ceremonija[[#This Row],[FAKTINĖS IŠLAIDOS]]=\"\"),\"\",TBL_Ceremonija[[#This Row],[NUMATOMOS IŠLAIDOS]]-TBL_Ceremonija[[#This Row],[FAKTINĖS IŠLAIDOS]])","v":""}]
[null,"IŠ VISO UŽ CEREMONIJĄ",{"$f":"SUBTOTAL(109,TBL_Ceremonija[NUMATOMOS IŠLAIDOS])","v":{"v":800,"d":"800.00 EUR"}},{"$f":"SUBTOTAL(109,TBL_Ceremonija[FAKTINĖS IŠLAIDOS])","v":{"v":0,"d":"0.00 EUR"}},{"$f":"TBL_Ceremonija[[#Totals],[NUMATOMOS IŠLAIDOS]]-TBL_Ceremonija[[#Totals],[FAKTINĖS IŠLAIDOS]]","v":{"v":800,"d":"800.00 EUR"}}]
[]
[]
[null,"RAŠTINĖS REIKMENYS","NUMATOMOS IŠLAIDOS","FAKTINĖS IŠLAIDOS","NUOKRYPIS"]
[null,"Atminimo kortelės",{"v":50,"d":"50.00 EUR"},null,{"$f":"IF(OR(TBL_RaštinėsReikmenys[[#This Row],[NUMATOMOS IŠLAIDOS]]=\"\",TBL_RaštinėsReikmenys[[#This Row],[FAKTINĖS IŠLAIDOS]]=\"\"),\"\",TBL_RaštinėsReikmenys[[#This Row],[NUMATOMOS IŠLAIDOS]]-TBL_RaštinėsReikmenys[[#This Row],[FAKTINĖS IŠLAIDOS]])","v":""}]
[null,"Kvietimai",{"v":100,"d":"100.00 EUR"},null,{"$f":"IF(OR(TBL_RaštinėsReikmenys[[#This Row],[NUMATOMOS IŠLAIDOS]]=\"\",TBL_RaštinėsReikmenys[[#This Row],[FAKTINĖS IŠLAIDOS]]=\"\"),\"\",TBL_RaštinėsReikmenys[[#This Row],[NUMATOMOS IŠLAIDOS]]-TBL_RaštinėsReikmenys[[#This Row],[FAKTINĖS IŠLAIDOS]])","v":""}]
[null,"Programos",{"v":50,"d":"50.00 EUR"},null,{"$f":"IF(OR(TBL_RaštinėsReikmenys[[#This Row],[NUMATOMOS IŠLAIDOS]]=\"\",TBL_RaštinėsReikmenys[[#This Row],[FAKTINĖS IŠLAIDOS]]=\"\"),\"\",TBL_RaštinėsReikmenys[[#This Row],[NUMATOMOS IŠLAIDOS]]-TBL_RaštinėsReikmenys[[#This Row],[FAKTINĖS IŠLAIDOS]])","v":""}]
[null,"Stalo ir vietų kortelės",{"v":50,"d":"50.00 EUR"},null,{"$f":"IF(OR(TBL_RaštinėsReikmenys[[#This Row],[NUMATOMOS IŠLAIDOS]]=\"\",TBL_RaštinėsReikmenys[[#This Row],[FAKTINĖS IŠLAIDOS]]=\"\"),\"\",TBL_RaštinėsReikmenys[[#This Row],[NUMATOMOS IŠLAIDOS]]-TBL_RaštinėsReikmenys[[#This Row],[FAKTINĖS IŠLAIDOS]])","v":""}]
[null,"Meniu kortelės",{"v":50,"d":"50.00 EUR"},null,{"$f":"IF(OR(TBL_RaštinėsReikmenys[[#This Row],[NUMATOMOS IŠLAIDOS]]=\"\",TBL_RaštinėsReikmenys[[#This Row],[FAKTINĖS IŠLAIDOS]]=\"\"),\"\",TBL_RaštinėsReikmenys[[#This Row],[NUMATOMOS IŠLAIDOS]]-TBL_RaštinėsReikmenys[[#This Row],[FAKTINĖS IŠLAIDOS]])","v":""}]
[null,"Padėkos kortelės",{"v":50,"d":"50.00 EUR"},null,{"$f":"IF(OR(TBL_RaštinėsReikmenys[[#This Row],[NUMATOMOS IŠLAIDOS]]=\"\",TBL_RaštinėsReikmenys[[#This Row],[FAKTINĖS IŠLAIDOS]]=\"\"),\"\",TBL_RaštinėsReikmenys[[#This Row],[NUMATOMOS IŠLAIDOS]]-TBL_RaštinėsReikmenys[[#This Row],[FAKTINĖS IŠLAIDOS]])","v":""}]
[null,"Pašto išlaidos",{"v":50,"d":"50.00 EUR"},null,{"$f":"IF(OR(TBL_RaštinėsReikmenys[[#This Row],[NUMATOMOS IŠLAIDOS]]=\"\",TBL_RaštinėsReikmenys[[#This Row],[FAKTINĖS IŠLAIDOS]]=\"\"),\"\",TBL_RaštinėsReikmenys[[#This Row],[NUMATOMOS IŠLAIDOS]]-TBL_RaštinėsReikmenys[[#This Row],[FAKTINĖS IŠLAIDOS]])","v":""}]
[null,"Papildomi mokesčiai",{"v":100,"d":"100.00 EUR"},null,{"$f":"IF(OR(TBL_RaštinėsReikmenys[[#This Row],[NUMATOMOS IŠLAIDOS]]=\"\",TBL_RaštinėsReikmenys[[#This Row],[FAKTINĖS IŠLAIDOS]]=\"\"),\"\",TBL_RaštinėsReikmenys[[#This Row],[NUMATOMOS IŠLAIDOS]]-TBL_RaštinėsReikmenys[[#This Row],[FAKTINĖS IŠLAIDOS]])","v":""}]
[null,"IŠ VISO UŽ RAŠTINĖS REIKMENIS",{"$f":"SUBTOTAL(109,TBL_RaštinėsReikmenys[NUMATOMOS IŠLAIDOS])","v":{"v":500,"d":"500.00 EUR"}},{"$f":"SUBTOTAL(109,TBL_RaštinėsReikmenys[FAKTINĖS IŠLAIDOS])","v":{"v":0,"d":"0.00 EUR"}},{"$f":"TBL_RaštinėsReikmenys[[#Totals],[NUMATOMOS IŠLAIDOS]]-TBL_RaštinėsReikmenys[[#Totals],[FAKTINĖS IŠLAIDOS]]","v":{"v":500,"d":"500.00 EUR"}}]
[]
[]
[null,"VESTUVINIAI ŽIEDAI","NUMATOMOS IŠLAIDOS","FAKTINĖS IŠLAIDOS","NUOKRYPIS"]
[null,"Vestuvių žiedai",{"v":1000,"d":"1,000.00 EUR"},null,{"$f":"IF(OR(TBL_Žiedai[[#This Row],[NUMATOMOS IŠLAIDOS]]=\"\",TBL_Žiedai[[#This Row],[FAKTINĖS IŠLAIDOS]]=\"\"),\"\",TBL_Žiedai[[#This Row],[NUMATOMOS IŠLAIDOS]]-TBL_Žiedai[[#This Row],[FAKTINĖS IŠLAIDOS]])","v":""}]
[null,"Žiedų aksesuarai",{"v":100,"d":"100.00 EUR"},null,{"$f":"IF(OR(TBL_Žiedai[[#This Row],[NUMATOMOS IŠLAIDOS]]=\"\",TBL_Žiedai[[#This Row],[FAKTINĖS IŠLAIDOS]]=\"\"),\"\",TBL_Žiedai[[#This Row],[NUMATOMOS IŠLAIDOS]]-TBL_Žiedai[[#This Row],[FAKTINĖS IŠLAIDOS]])","v":""}]
[null,"IŠ VISO UŽ VESTUVINIUS ŽIEDUS",{"$f":"SUBTOTAL(109,TBL_Žiedai[NUMATOMOS IŠLAIDOS])","v":{"v":1100,"d":"1,100.00 EUR"}},{"$f":"SUBTOTAL(109,TBL_Žiedai[FAKTINĖS IŠLAIDOS])","v":{"v":0,"d":"0.00 EUR"}},{"$f":"TBL_Žiedai[[#Totals],[NUMATOMOS IŠLAIDOS]]-TBL_Žiedai[[#Totals],[FAKTINĖS IŠLAIDOS]]","v":{"v":1100,"d":"1,100.00 EUR"}}]
[]
[]
[null,"TRANSPORTAS  ","NUMATOMOS IŠLAIDOS","FAKTINĖS IŠLAIDOS","NUOKRYPIS"]
[null,"Pagrindinio automobilio nuoma",{"v":100,"d":"100.00 EUR"},null,{"$f":"IF(OR(TBL_Transportas[[#This Row],[NUMATOMOS IŠLAIDOS]]=\"\",TBL_Transportas[[#This Row],[FAKTINĖS IŠLAIDOS]]=\"\"),\"\",TBL_Transportas[[#This Row],[NUMATOMOS IŠLAIDOS]]-TBL_Transportas[[#This Row],[FAKTINĖS IŠLAIDOS]])","v":""}]
[null,"Svečių automobilių nuoma",{"v":100,"d":"100.00 EUR"},null,{"$f":"IF(OR(TBL_Transportas[[#This Row],[NUMATOMOS IŠLAIDOS]]=\"\",TBL_Transportas[[#This Row],[FAKTINĖS IŠLAIDOS]]=\"\"),\"\",TBL_Transportas[[#This Row],[NUMATOMOS IŠLAIDOS]]-TBL_Transportas[[#This Row],[FAKTINĖS IŠLAIDOS]])","v":""}]
[null,"Svečių transportavimas už miesto",{"v":100,"d":"100.00 EUR"},null,{"$f":"IF(OR(TBL_Transportas[[#This Row],[NUMATOMOS IŠLAIDOS]]=\"\",TBL_Transportas[[#This Row],[FAKTINĖS IŠLAIDOS]]=\"\"),\"\",TBL_Transportas[[#This Row],[NUMATOMOS IŠLAIDOS]]-TBL_Transportas[[#This Row],[FAKTINĖS IŠLAIDOS]])","v":""}]
[null,"Automobilių parkavimas",{"v":50,"d":"50.00 EUR"},null,{"$f":"IF(OR(TBL_Transportas[[#This Row],[NUMATOMOS IŠLAIDOS]]=\"\",TBL_Transportas[[#This Row],[FAKTINĖS IŠLAIDOS]]=\"\"),\"\",TBL_Transportas[[#This Row],[NUMATOMOS IŠLAIDOS]]-TBL_Transportas[[#This Row],[FAKTINĖS IŠLAIDOS]])","v":""}]
[null,"Papildomi mokesčiai",{"v":100,"d":"100.00 EUR"},null,{"$f":"IF(OR(TBL_Transportas[[#This Row],[NUMATOMOS IŠLAIDOS]]=\"\",TBL_Transportas[[#This Row],[FAKTINĖS IŠLAIDOS]]=\"\"),\"\",TBL_Transportas[[#This Row],[NUMATOMOS IŠLAIDOS]]-TBL_Transportas[[#This Row],[FAKTINĖS IŠLAIDOS]])","v":""}]
[null,"IŠ VISO UŽ TRANSPORTĄ",{"$f":"SUBTOTAL(109,TBL_Transportas[NUMATOMOS IŠLAIDOS])","v":{"v":450,"d":"450.00 EUR"}},{"$f":"SUBTOTAL(109,TBL_Transportas[FAKTINĖS IŠLAIDOS])","v":{"v":0,"d":"0.00 EUR"}},{"$f":"TBL_Transportas[[#Totals],[NUMATOMOS IŠLAIDOS]]-TBL_Transportas[[#Totals],[FAKTINĖS IŠLAIDOS]]","v":{"v":450,"d":"450.00 EUR"}}]